[Event "European Women-ch 2023"]
[Site "Petrovac"]
[Date "2023.03.27"]
[Round "9.19"]
[White "Bassari, Senem Gul"]
[Black "Kostina, Veronika"]
[Result "0-1"]
[ECO "B47"]
[WhiteElo "1524"]
[BlackElo "1855"]
[Annotator "NA RC COMBH"]
[PlyCount "108"]
[EventDate "2023.03.15"]
[EventType "swiss"]
[EventCountry "MNE"]
[SourceTitle "playchess.com"]
[Source "ChessBase"]
[SourceQuality "1"]
[TimeControl "40/5400+30:1800+30"]

1. e4 {[%emt 0:00:07]} c5 {[%emt 0:00:07]} 2. Nf3 {[%emt 0:00:09]} e6 {[%emt 0:00:10]} 3. d4 {[%emt 0:00:14]} cxd4 {[%emt 0:00:10]} 4. Nxd4 {[%emt 0:00:11]} Nc6 {[%emt 0:00:11]} 5. Nc3 {[%emt 0:00:21]} Qc7 {[%emt 0:00:44]} 6. g3 {[%emt 0:00:15]} a6 {[%emt 0:00:23]} 7. Bg2 {[%emt 0:00:13]} d6 {[%emt 0:00:18]} 8. O-O {[%emt 0:01:15]} Bd7 {[%emt 0:00:48]} 9. Be3 {[%emt 0:06:33]} Be7 {[%emt 0:03:26]} 10. Qd2 {[%emt 0:13:00]} Nf6 {[%emt 0:03:37]} 11. Rad1 {[%emt 0:08:17]} O-O {[%emt 0:03:50]} 12. Nb3 {[%emt 0:07:57]} b5 {[%emt 0:03:18]} 13. Bf4 {[%emt 0:07:57]} e5 {[%emt 0:08:35]} 14. Nd5 {[%emt 0:15:34]} Nxd5 {[%emt 0:06:04]} 15. exd5 {[%emt 0:00:41]} exf4 {[%emt 0:02:14]} 16. dxc6 {[%emt 0:01:31]} Bxc6 {[%emt 0:02:45]} 17. Bxc6 {[%emt 0:01:46]} Qxc6 {[%emt 0:00:43]} 18. Qxf4 {[%emt 0:00:34]} Qxc2 {[%emt 0:03:47]} 19. Rd2 {[%emt 0:08:53]} Qg6 {[%emt 0:03:24]} 20. h4 {[%emt 0:03:15]} Rfe8 {[%emt 0:03:28]} 21. Nd4 {[%emt 0:05:09]} Bf8 {[%emt 0:04:40]} 22. Qf3 {[%emt 0:07:32]} Rad8 {[%emt 0:06:53]} 23. h5 {[%emt 0:04:06]} Qg5 {[%emt 0:03:42]} 24. Rfd1 {[%emt 0:01:18]} Re1+ {[%emt 0:02:32]} 25. Kg2 {[%emt 0:02:55]} Rxd1 {[%emt 0:00:28]} 26. Rxd1 {[%emt 0:00:18]} d5 {[%emt 0:06:21]} 27. Nf5 {[%emt 0:02:01]} g6 {[%emt 0:02:33]} 28. hxg6 {[%emt 0:00:42]} hxg6 {[%emt 0:00:07]} 29. Nd4 {[%emt 0:01:08]} Bg7 {[%emt 0:01:44]} 30. Nc6 {[%emt 0:00:54]} Rd6 {[%emt 0:02:57]} 31. Nb4 {[%emt 0:00:25]} Bxb2 {[%emt 0:01:37]} 32. Nxd5 {[%emt 0:00:41]} Kg7 {[%emt 0:01:00]} 33. Ne3 {[%emt 0:00:34]} Rxd1 {[%emt 0:00:55]} 34. Qxd1 {[%emt 0:00:20]} Qe5 {[%emt 0:02:26]} 35. Qf3 {[%emt 0:00:32]} a5 {[%emt 0:02:16]} 36. Qc6 {[%emt 0:00:34]} Bd4 {[%emt 0:06:29]} 37. Nc2 {[%emt 0:00:30]} Bc5 {[%emt 0:02:01]} 38. Qf3 {[%emt 0:00:32]} b4 {[%emt 0:03:14]} 39. Qd3 {[%emt 0:00:29]} Qf5 {[%emt 0:02:48]} 40. Qe2 {[%emt 0:00:00]} a4 {[%emt 0:00:00]} 41. Qd2 {[%emt 0:07:07]} b3 {[%emt 0:06:25]} 42. axb3 {[%emt 0:02:22]} axb3 {[%emt 0:03:32]} 43. Na1 {[%emt 0:02:22]} Qe4+ {[%emt 0:04:35]} 44. f3 {[%emt 0:02:48]} Qc4 {[%emt 0:03:08]} 45. g4 {[%emt 0:06:07]} Ba3 {[%emt 0:04:07]} 46. Nxb3 {[%emt 0:01:09]} Qxb3 {[%emt 0:00:14]} 47. Qd4+ {[%emt 0:00:32]} Kh7 {[%emt 0:00:43]} 48. Qd8 {[%emt 0:00:56]} Qb2+ {[%emt 0:00:37]} 49. Kh3 {[%emt 0:00:36]} Kg7 {[%emt 0:01:01]} 50. Qh4 {[%emt 0:01:19]} Qf6 {[%emt 0:00:56]} 51. Qg3 {[%emt 0:00:34]} Bd6 {[%emt 0:00:39]} 52. Qg2 {[%emt 0:03:05]} Qf4 {[%emt 0:00:45]} 53. g5 {[%emt 0:00:44]} Be5 {[%emt 0:00:38]} 54. Qg4 {[%emt 0:00:19]} Qh2# {[%emt 0:00:16]} 0-1

[Event "European Women-ch 2023"]
[Site "Petrovac"]
[Date "2023.03.27"]
[Round "9.20"]
[White "Hrescak, Ivana"]
[Black "Urh, Zala"]
[Result "0-1"]
[ECO "A29"]
[WhiteElo "2127"]
[BlackElo "2294"]
[Annotator "TA"]
[PlyCount "82"]
[EventDate "2023.03.15"]
[EventType "swiss"]
[EventCountry "MNE"]
[SourceTitle "playchess.com"]
[Source "ChessBase"]
[SourceQuality "1"]
[TimeControl "40/5400+30:1800+30"]

{[%evp 16,82,0,0,0,7,0,0,7,0,0,1,19,23,62,-13,22,12,16,22,20,20,10,20,18,16,9,0,0,0,0,0,0,-31,-33,-26,-25,-43,0,-54,-49,-82,-83,-60,-75,-95,-91,-97,-95,-97,-80,-111,-116,-129,-56,-64,-41,-44,-21,-66,-64,-185,-191,-180,-185,-207,-187,-6495,-6491]} 1. c4 {[%emt 0:00:04]} e5 {[%emt 0:00:29]} 2. g3 {[%emt 0:00:23]} Nf6 {[%emt 0:00:11]} 3. Bg2 {[%emt 0:00:14]} d5 {[%emt 0:00:07]} 4. cxd5 {[%emt 0:00:10]} Nxd5 {[%emt 0:00:07]} 5. Nc3 {[%emt 0:00:17]} Nb6 {[%emt 0:00:21]} 6. Nf3 {[%emt 0:08:31]} Nc6 {[%emt 0:00:30]} 7. O-O {[%emt 0:04:16]} Be7 {[%emt 0:00:11]} 8. b3 {[%emt 0:03:09]} O-O {[%emt 0:01:57]} 9. Bb2 {[%emt 0:00:06]} Re8 {[%emt 0:02:55] A29: English Opening: Four Knights Variation with 4 g3.} 10. d3 {[%emt 0:06:54]} Bf8 {[%emt 0:02:28]} 11. Rc1 {[%emt 0:00:28]} a5 {[%emt 0:03:12] [#] The position is equal.} 12. Nb5 $146 {[%emt 0:05:24]} ({Predecessor:} 12. a3 Nd4 13. Nd2 c6 14. e3 Ne6 15. Nc4 Nxc4 16. bxc4 a4 17. Rb1 Qa5 18. Ne4 Nc5 {1-0 Heberla,B (2565)-Kosakowski,J (2403) Bialystok Zamenhof Memorial 38th 2019 (7)}) 12... Bd7 {[%emt 0:16:17]} 13. a4 {[%emt 0:02:10]} f6 {[%emt 0:06:40]} 14. Nd2 {[%emt 0:03:49]} Be6 {[%emt 0:07:28]} 15. Nc4 {[%emt 0:05:12]} (15. Rxc6 $1 $14 bxc6 16. Bxc6) 15... Nd5 {[%emt 0:03:12]} 16. d4 {[%emt 0:12:32]} exd4 {[%emt 0:05:46]} 17. Nxd4 {[%emt 0:00:57]} Nxd4 {[%emt 0:01:45]} 18. Qxd4 {[%emt 0:00:18]} c6 {[%emt 0:00:35]} 19. Rfd1 {[%emt 0:08:26]} Qe7 {[%emt 0:01:56]} 20. e4 {[%emt 0:04:58]} Nb4 {[%emt 0:01:51]} 21. e5 {[%emt 0:09:50]} fxe5 {[%emt 0:03:52]} 22. Qxe5 {[%emt 0:00:22]} Qf7 {[%emt 0:00:14]} 23. Qd4 {[%emt 0:08:42]} (23. Nxa5 $2 {is the wrong capture.} Bxb3 24. Nxb3 Rxe5 25. Bxe5 Qxb3 $19) 23... Bf5 {[%emt 0:06:46]} 24. Ne5 {[%emt 0:07:09]} Qxb3 {[%emt 0:04:28] [#] Threatens to win with ...Rad8.} 25. Bf1 {[%emt 0:00:14] Hoping for Bc4+.} Be6 {[%emt 0:02:38] aiming for ...Red8.} 26. Nd7 {[%emt 0:03:40]} Qd5 {[%emt 0:06:44]} (26... Qxa4 $2 27. Nxf8 Re7 28. Nxe6 $18) 27. Qh4 {[%emt 0:02:55]} (27. Qb6 $11 Qf3 28. Qxb7) 27... Qf5 $15 {[%emt 0:01:41]} 28. Bc4 {[%emt 0:01:18]} Bxc4 {[%emt 0:02:49]} (28... Bd5 {feels hotter.} 29. Nxf8 Rxf8 30. Qd4 Rf7) 29. Qxc4+ {[%emt 0:00:10]} Nd5 {[%emt 0:03:02]} 30. Nxf8 {[%emt 0:00:23]} Rxf8 {[%emt 0:00:05]} 31. Qd4 {[%emt 0:00:10][%csl Gb2][%cal Rd4g7] [#]} Rf7 {[%emt 0:00:26]} 32. Re1 {[%emt 0:01:52]} Raf8 $36 {[%emt 0:09:32][%cal Rf5f2][%mdl 2048] Keeping White busy.} 33. Re2 {[%emt 0:00:05]} Qg6 {[%emt 0:00:24] Strongly threatening ...Nf4.} 34. Kh1 {[%emt 0:01:20]} Nf6 {[%emt 0:01:19]} (34... Qh5 $17 35. Rce1 Qf3+ 36. Kg1 b5 37. axb5 cxb5) 35. Rce1 {[%emt 0:00:40]} Ng4 {[%emt 0:00:32][%cal Rg4f2]} 36. f4 {[%emt 0:00:29]} Qh5 {[%emt 0:01:24]} (36... h5 {simplifies} 37. Qc5 Qf5 38. Qxf5 Rxf5 39. Rd1 R8f7) 37. Ba3 {[%emt 0:00:32]} Nxh2 $1 {[%emt 0:02:13] ...Nf3+ is the strong threat.} 38. Rxh2 {[%emt 0:00:17] White does not recover from this.} (38. Qe5 $15 Qf3+ 39. Kxh2 Qxa3 40. Qxa5) 38... Qf3+ $19 {[%emt 0:00:04]} 39. Rg2 {[%emt 0:00:36]} Qxa3 {[%emt 0:00:05]} 40. Qe4 {[%emt 0:00:00]} Qb4 {[%emt 0:00:00]} 41. Qc2 $2 {[%emt 0:06:25]} (41. Rge2) 41... Qxe1+ {[%emt 0:00:10] Weighted Error Value: White=0.38/Black=0.09 (flawless)} 0-1

[Event "European Women-ch 2023"]
[Site "Petrovac"]
[Date "2023.03.27"]
[Round "9.20"]
[White "Buchholz, Maja Patricia"]
[Black "Mashchenko, Tamila"]
[Result "0-1"]
[ECO "E69"]
[WhiteElo "1883"]
[BlackElo "1956"]
[Annotator "TA"]
[PlyCount "122"]
[EventDate "2023.03.15"]
[EventType "swiss"]
[EventCountry "MNE"]
[SourceTitle "playchess.com"]
[Source "ChessBase"]
[SourceQuality "1"]
[TimeControl "40/5400+30:1800+30"]

{[%evp 25,122,0,12,13,21,16,25,0,0,-17,92,100,206,195,188,188,191,190,245,237,206,164,746,233,229,246,226,250,306,314,312,269,271,271,427,422,411,367,589,335,397,352,325,320,294,313,301,286,627,344,556,548,532,295,517,500,663,435,400,253,277,251,242,-318,-318,-310,-310,-1014,-992,-868,-862,-845,-828,-842,-680,-1073,-1068,-1035,-993,-992,-944,-1025,-802,-4005,-2043,-29990,-29991,-29991,-29992,-29992,-29993,-29993,-29992,-29992,-29993,-29993,-29993,-29996,-29997]} 1. c4 {[%emt 0:00:03]} Nf6 {[%emt 0:05:17]} 2. g3 {[%emt 0:00:10]} g6 {[%emt 0:00:06]} 3. Bg2 {[%emt 0:00:07]} Bg7 {[%emt 0:00:04]} 4. Nc3 {[%emt 0:00:18]} O-O {[%emt 0:00:07]} 5. d4 {[%emt 0:00:14]} d6 {[%emt 0:00:05]} 6. Nf3 {[%emt 0:00:12]} Nbd7 {[%emt 0:00:05]} 7. O-O {[%emt 0:00:17]} e5 {[%emt 0:00:04]} 8. e4 {[%emt 0:00:14]} exd4 {[%emt 0:00:11]} 9. Nxd4 {[%emt 0:00:14]} c6 {[%emt 0:00:06]} 10. Re1 {[%emt 0:04:44]} Re8 {[%emt 0:00:48]} 11. h3 {[%emt 0:04:11]} a5 {[%emt 0:01:53]} 12. b3 {[%emt 0:02:22]} Nc5 {[%emt 0:01:23]} 13. Bb2 {[%emt 0:02:43]} Qb6 {[%emt 0:01:16]} 14. Rb1 {[%emt 0:03:49] E69: King's Indian: Fianchetto: 6...Nbd7 7 0-0 e5 8 e4 c6 9 h3.} h5 {[%emt 0:18:23]} (14... Nfd7 $5) 15. Ba1 {[%emt 0:03:53]} Nfd7 {[%emt 0:06:08] [#]} 16. Qd2 $146 {[%emt 0:14:18] White has an edge.} ({Predecessor:} 16. Nf3 Ne5 17. Nxe5 dxe5 18. Na4 Nxa4 19. bxa4 Qc7 20. Qb3 Bf8 21. Bc3 Bc5 22. Qb2 Qe7 {0-1 Nikolic,Z (2107)-Martic,I (2287) SRB-ch sf Paracin 2022 (4)}) 16... Ne5 {[%emt 0:10:42]} 17. Nc2 {[%emt 0:02:52] [#]} Bxh3 {[%emt 0:07:21]} 18. Na4 $16 {[%emt 0:03:17]} Nxa4 {[%emt 0:12:57]} (18... Qd8 $16) 19. Bxe5 {[%emt 0:02:12]} (19. Bxh3 $2 Nf3+ 20. Kg2 Nxd2 $19) 19... Bxe5 {[%emt 0:01:28]} 20. bxa4 {[%emt 0:01:05][%mdl 64] Discovered Attack} Qc5 {[%emt 0:00:43] Hoping for ...Bxg2.} 21. Bxh3 {[%emt 0:00:40]} Qxc4 {[%emt 0:00:51]} (21... Bxg3 {was worth a try.} 22. Rxb7 Rab8) 22. Ne3 {[%emt 0:03:50]} (22. Rxb7 $6 Rab8 23. Reb1 Rxb7 24. Rxb7 Qxe4) 22... Qxa4 {[%emt 0:02:22]} 23. Rxb7 {[%emt 0:01:17]} Bd4 $2 {[%emt 0:09:20]} (23... Rab8 24. Reb1 Rxb7 25. Rxb7 Qxe4) 24. Ng2 $2 {[%emt 0:06:35]} (24. Nf5 {Strongly threatening Nh6+.} Ra7 25. Nh6+ (25. Qxd4 Qxd4 26. Nxd4 Rxb7 $11) (25. Nxd4 Rxb7 26. Bg2 c5 $11) 25... Kg7 26. Reb1 (26. Rxa7 Bxa7 27. Qg5 Qc2 $18)) 24... Rab8 {[%emt 0:05:16]} 25. Reb1 {[%emt 0:02:22]} Rxb7 {[%emt 0:00:23]} 26. Rxb7 {[%emt 0:00:07]} Be5 {[%emt 0:01:23]} 27. Bd7 {[%emt 0:05:41][%cal Bh3d7,Bd7c6,Bc6d5][%mdl 32]} Rf8 {[%emt 0:00:56]} 28. Qe2 {[%emt 0:01:23]} Qd4 {[%emt 0:01:03]} 29. Kh2 {[%emt 0:00:46]} c5 {[%emt 0:00:22]} (29... d5 $142 30. Bxc6 Qxe4 31. Qxe4 dxe4 32. Bxe4 Rd8) 30. Bc6 $18 {[%emt 0:00:47]} c4 {[%emt 0:00:44]} 31. Bd5 {[%emt 0:05:12]} c3 $2 {[%emt 0:00:28]} (31... Qd3 32. Bxc4 Qxe2 33. Bxe2 d5 34. exd5 Rb8) 32. Ne3 {[%emt 0:01:09]} Kg7 {[%emt 0:01:22]} 33. Nc4 {[%emt 0:04:00] Repels Qd2} h4 {[%emt 0:01:56][%cal Od4f2]} 34. Kg2 {[%emt 0:02:59]} (34. Nxa5 $6 hxg3+ 35. Kg2 (35. fxg3 c2 $11) 35... gxf2 $16) 34... hxg3 {[%emt 0:04:05] Black is weak on the light squares} 35. fxg3 {[%emt 0:00:36]} a4 {[%emt 0:01:45]} 36. Qc2 {[%emt 0:02:13]} g5 $2 {[%emt 0:03:04]} (36... Bf6 37. Nxd6 Qd2+ 38. Qxd2 cxd2) 37. Nxe5 {[%emt 0:05:31]} (37. Qxa4 $2 {is the wrong capture.} Qd3 38. Nxe5 Qe2+ 39. Kg1 c2 $19) 37... Qxe5 {[%emt 0:01:15]} (37... dxe5 {keeps fighting.} 38. Qe2 Kh6) 38. Rc7 {[%emt 0:02:39]} g4 {[%emt 0:01:18]} 39. Rxc3 {[%emt 0:04:31]} Qh5 $2 {[%emt 0:00:39]} (39... Rb8 {was called for.} 40. Bc4 Re8) 40. Qxa4 {[%emt 0:00:00]} Qh3+ {[%emt 0:00:00]} 41. Kf2 {[%emt 0:02:52]} Qh2+ {[%emt 0:04:47]} 42. Ke1 {[%emt 0:00:19]} Qg1+ {[%emt 0:00:19]} 43. Kd2 {[%emt 0:00:51]} Rh8 {[%emt 0:01:29] ( -> ...Rh2+)} 44. Kc2 $4 {[%emt 0:01:40][%mdl 8192] [#]} (44. Re3 $18 {was the only winning move.}) 44... Rh2+ $1 $19 {[%emt 0:00:43] White is on the road to losing.} 45. Kb3 {[%emt 0:00:33] [#]} Qb6+ {[%emt 0:02:11]} 46. Kc4 $2 {[%emt 0:00:31]} (46. Qb4 Rb2+ {[%mdl 64] Skewer, Deflection} 47. Kxb2 Qxb4+ 48. Kc2) 46... Rd2 {[%emt 0:01:37][%csl Gb6][%cal Rd2d4]} 47. Ra3 {[%emt 0:10:03]} Qc5+ {[%emt 0:08:41]} 48. Kb3 {[%emt 0:00:21]} Qc2+ {[%emt 0:00:12]} 49. Kb4 {[%emt 0:00:20]} Rd4+ {[%emt 0:00:11]} 50. Ka5 {[%emt 0:00:31]} Rxa4+ {[%emt 0:00:31]} 51. Rxa4 {[%emt 0:00:06][%mdl 4096] Endgame KQ-KRB} Qc3+ {[%emt 0:00:07]} 52. Rb4 {[%emt 0:00:36]} Qxg3 {[%emt 0:00:12] And now ...Qf2 would win.} 53. Rb3 {[%emt 0:01:29]} Qe5 {[%emt 0:00:46] ...g3 is the strong threat.} 54. a4 {[%emt 0:02:50]} g3 {[%emt 0:00:29]} 55. Rf3 {[%emt 0:00:06]} g2 {[%emt 0:01:47] Black mates.} 56. Rxf7+ {[%emt 0:00:05]} Kh6 {[%emt 0:00:17]} 57. Rc7 {[%emt 0:01:35]} g1=Q {[%emt 0:00:31]} 58. Ka6 {[%emt 0:01:04]} Qb1 {[%emt 0:03:34]} 59. Rb7 {[%emt 0:00:58]} Qd3+ {[%emt 0:00:34]} 60. Rb5 {[%emt 0:00:39]} Qed4 {[%emt 0:01:26]} 61. a5 {[%emt 0:00:54]} Qc5 {[%emt 0:00:36] Artfully played by Mashchenko.   Weighted Error Value: White=1.03/Black=0.51} 0-1

[Event "European Women-ch 2023"]
[Site "Petrovac"]
[Date "2023.03.27"]
[Round "9.21"]
[White "Petrova, Irina"]
[Black "Antolak, Julia"]
[Result "0-1"]
[ECO "B40"]
[WhiteElo "2123"]
[BlackElo "2276"]
[Annotator "TA"]
[PlyCount "166"]
[EventDate "2023.03.15"]
[EventType "swiss"]
[EventCountry "MNE"]
[SourceTitle "playchess.com"]
[Source "ChessBase"]
[SourceQuality "1"]
[TimeControl "40/5400+30:1800+30"]

{[%evp 14,166,0,0,0,0,0,0,0,0,0,0,-7,-59,-45,-45,-50,-114,-102,-114,-81,-93,-83,-142,-135,-143,-117,-169,-139,-130,-106,-114,-90,-98,-1,-35,0,-14,-16,-16,20,47,47,16,13,0,0,0,0,0,110,43,373,387,380,381,380,380,316,0,0,0,0,0,36,0,120,27,146,62,151,139,135,119,111,0,0,0,0,0,0,0,36,45,80,0,0,0,0,0,0,0,7,0,0,0,0,0,0,0,0,0,145,0,50,0,457,84,84,45,45,45,45,45,83,74,83,83,83,83,83,-278,-277,-492,-445,-485,-485,-485,-480,-472,-468,-408,-309,-714,-700,-700,-683,-29962,-29958,-12372,-5189,-29973,-4137,-29961,-4137,-29977,-777,-1749,-1687,-29978,-29979,-29994,-29988,-29995,-29996]} 1. e4 {[%emt 0:00:02]} c5 {[%emt 0:00:06]} 2. Nf3 {[%emt 0:00:05]} e6 {[%emt 0:00:06]} 3. c4 {[%emt 0:00:09]} Nc6 {[%emt 0:00:26]} 4. Nc3 {[%emt 0:00:09]} Nd4 {[%emt 0:00:38]} 5. g3 {[%emt 0:01:03]} Ne7 {[%emt 0:00:32]} 6. Bg2 {[%emt 0:00:36]} Nec6 {[%emt 0:00:17]} 7. O-O {[%emt 0:00:45]} Be7 {[%emt 0:00:27]} 8. d3 {[%emt 0:00:32]} O-O {[%emt 0:00:23]} 9. a3 {[%emt 0:00:41]} a6 {[%emt 0:01:55]} 10. Rb1 {[%emt 0:00:32]} Rb8 {[%emt 0:01:32]} 11. Bf4 {[%emt 0:07:35]} d6 {[%emt 0:12:51]} 12. Nxd4 {[%emt 0:05:44]} cxd4 {[%emt 0:02:19]} 13. Ne2 {[%emt 0:00:14]} (13. Na2 $1 $11) 13... e5 {[%emt 0:02:18]} 14. Bd2 {[%emt 0:00:44]} b5 {[%emt 0:04:04]} 15. f4 {[%emt 0:14:19]} (15. cxb5 $15 axb5 16. Ra1) 15... bxc4 $17 {[%emt 0:11:04]} 16. dxc4 {[%emt 0:00:09]} Be6 {[%emt 0:09:19]} 17. b3 {[%emt 0:02:06]} f6 {[%emt 0:01:37]} 18. Nc1 {[%emt 0:01:13]} (18. Ra1 $142) 18... Bxc4 $17 {[%emt 0:05:06]} 19. Rf2 {[%emt 0:05:59]} Qb6 {[%emt 0:02:50]} 20. Bf1 {[%emt 0:07:43]} (20. Be1 $17) 20... Be6 {[%emt 0:03:30]} 21. Bd3 {[%emt 0:03:48]} Rfc8 {[%emt 0:08:04]} 22. b4 {[%emt 0:04:23]} Na7 {[%emt 0:04:08]} 23. a4 {[%emt 0:03:56]} Rc6 {[%emt 0:01:25]} ({Black should play} 23... Qc6 $17 24. Be1 d5) 24. Nb3 $11 {[%emt 0:04:28]} Bc4 {[%emt 0:05:45]} 25. Bxc4+ {[%emt 0:11:18]} Rxc4 {[%emt 0:00:05]} 26. Qg4 {[%emt 0:00:07]} Rc7 {[%emt 0:04:41]} 27. b5 {[%emt 0:04:01]} Qb7 {[%emt 0:00:12]} (27... axb5 28. Ba5 Qc6 29. Bxc7 Qxc7 30. Qe6+ Kh8 31. Rc1 $16) 28. b6 {[%emt 0:02:05]} Qxb6 {[%emt 0:02:46]} 29. Ba5 {[%emt 0:00:04]} Qxa5 {[%emt 0:03:03]} 30. Nxa5 {[%emt 0:00:06]} Rxb1+ {[%emt 0:00:04]} 31. Kg2 {[%emt 0:00:49]} Nc8 {[%emt 0:02:57]} (31... Rb4 $11) 32. Qe2 {[%emt 0:05:34]} (32. Qe6+ $16 Kf8 33. fxe5 dxe5 34. Nc4 (34. Qxa6 Nb6 $15) (34. Qxe5 Rc5 $11)) 32... Rb6 $2 {[%emt 0:00:50][%mdl 8192]} (32... Kf8 $14) 33. Qa2+ $18 {[%emt 0:00:03]} Kf8 {[%emt 0:01:07] [#]} 34. Rc2 $1 {[%emt 0:00:31]} Rc5 {[%emt 0:02:38]} 35. fxe5 {[%emt 0:03:38]} fxe5 {[%emt 0:00:53]} (35... dxe5 $2 36. Rxc5 Bxc5 37. Qc2 $18) 36. Nb3 $2 {[%emt 0:02:57]} ({White must play} 36. Rxc5 $18 dxc5 37. Qd5 Rb2+ 38. Kf3) 36... Rc3 $11 {[%emt 0:00:24]} 37. Rf2+ {[%emt 0:00:33]} Bf6 {[%emt 0:00:44]} 38. Nd2 {[%emt 0:00:17]} Ke7 {[%emt 0:00:36]} 39. Nf3 {[%emt 0:01:44]} (39. Qg8 $5 {[%cal Rd2f3]}) 39... Rbc6 {[%emt 0:01:38]} (39... Kd7 $11) 40. Nh4 {[%emt 0:00:00]} (40. g4 $16 {Threatens to win with g5.} Nb6 41. g5 Bxg5 42. Nxg5) 40... d3 {[%emt 0:00:00]} (40... R6c4 $11 {keeps the balance.}) 41. Nf5+ $16 {[%emt 0:14:02]} Kf8 {[%emt 0:05:20]} (41... Kd7 $14) 42. Ne3 {[%emt 0:02:36]} (42. Nh6 $6 R6c4 $11) 42... Ne7 {[%emt 0:01:32]} 43. Qd2 {[%emt 0:03:23]} Ke8 {[%emt 0:02:08]} 44. Nd1 {[%emt 0:03:40]} (44. Qd1 $16) 44... Rb3 $11 {[%emt 0:01:37]} 45. Qa2 {[%emt 0:01:05]} Rb4 {[%emt 0:01:06]} 46. Rd2 $1 {[%emt 0:01:18]} Rxe4 {[%emt 0:10:53]} 47. Rxd3 {[%emt 0:00:10]} d5 {[%emt 0:00:33]} 48. Ne3 {[%emt 0:02:41]} d4 {[%emt 0:03:17]} 49. Nc4 {[%emt 0:00:18]} (49. Nd1 $16) 49... Re1 $11 {[%emt 0:01:38]} 50. Na5 {[%emt 0:05:25]} e4 {[%emt 0:03:43]} 51. Rb3 {[%emt 0:02:25]} (51. Nxc6 $2 exd3 52. Qb3 d2 53. Qb8+ Kf7 54. Qb3+ Ke8 55. Qb8+ Kd7 56. Qb7+ Kd6 57. Qb4+ Kxc6 $19) 51... Rc8 {[%emt 0:03:21]} 52. Rb7 {[%emt 0:02:23]} e3 {[%emt 0:02:53]} 53. Qe6 {[%emt 0:00:59]} (53. Nc4 $5 Rd8 $8 54. Nb6 $11) 53... Rec1 {[%emt 0:00:12]} 54. Nb3 {[%emt 0:01:55]} (54. Qxa6 $2 e2 55. Qxe2 R1c2 $19) 54... R1c7 {[%emt 0:03:06]} 55. Rxc7 {[%emt 0:00:18]} Rxc7 {[%emt 0:00:01]} 56. Qe4 {[%emt 0:00:07]} Rc4 {[%emt 0:01:18]} 57. a5 {[%emt 0:00:42]} Rb4 {[%emt 0:00:47] [#]} (57... h5 $11 {remains equal.}) 58. Qd3 {[%emt 0:00:36]} ({Much worse is} 58. Nc5 $6 Rb5 59. Ne6 Re5 60. Qa8+ Kf7 61. Nxd4 e2 $11) ({Only move:} 58. Qa8+ $1 $16 Kf7 59. Qxa6) 58... Kf8 {[%emt 0:00:31]} ({Better is} 58... Be5 $11) 59. Kf3 {[%emt 0:00:50]} (59. Nc5 $1 $14) 59... g6 $2 {[%emt 0:01:12][%mdl 8192]} (59... Ke8 $11 {and Black stays safe.}) 60. Nc5 $2 {[%emt 0:00:30]} (60. Qxa6 $18 {and the rest is easy.} Kg7 61. Nc5) 60... Rb5 $16 {[%emt 0:00:34]} 61. Ne6+ {[%emt 0:00:49]} ({Worse is} 61. Nxa6 Rf5+ 62. Kg2 Re5 $17) 61... Kf7 {[%emt 0:00:43]} 62. Qc4 {[%emt 0:00:58]} (62. Nxd4 Rd5 63. Qxa6 Bxd4 $19) 62... Rxa5 {[%emt 0:00:39]} 63. Nxd4+ {[%emt 0:00:57]} Rd5 {[%emt 0:00:39]} 64. Nc2 {[%emt 0:00:36]} Kg7 {[%emt 0:00:37]} 65. Nxe3 {[%emt 0:00:07]} Rd6 {[%emt 0:00:22]} 66. Qc7 {[%emt 0:01:00]} Rd3 {[%emt 0:00:51]} 67. Qc4 $2 {[%emt 0:01:16][%mdl 8192]} (67. Ke2 $16 Rc3 68. Qa7) 67... Rc3 $19 {[%emt 0:00:16]} 68. Qe4 $2 {[%emt 0:00:34]} (68. Qxa6 {was necessary.} Nf5 69. Qa7+ Kh6 70. Kg2 Rxe3 71. Qf7) 68... Nf5 $19 {[%emt 0:00:29]} 69. Qb7+ {[%emt 0:00:33]} Kh6 {[%emt 0:00:22]} 70. Qxa6 {[%emt 0:00:16]} Rxe3+ {[%emt 0:00:02]} 71. Kg2 {[%emt 0:00:14]} Bd4 {[%emt 0:00:10]} 72. Qa8 {[%emt 0:00:55]} Kg7 {[%emt 0:00:54]} 73. Qb7+ $2 {[%emt 0:00:14]} (73. g4 Nh4+ 74. Kf1) 73... Re7 $19 {[%emt 0:00:05]} 74. Qb4 {[%emt 0:00:21]} h5 {[%emt 0:00:20]} 75. Kf3 {[%emt 0:00:45]} Re3+ {[%emt 0:00:26]} 76. Kg2 {[%emt 0:00:06]} Re2+ {[%emt 0:00:05]} 77. Kh3 {[%emt 0:01:35]} Kh6 {[%emt 0:01:05]} (77... Bg1 $142 78. Qc3+ Kh7 79. Qc7+ Ng7 80. g4 Rxh2+ 81. Kg3 h4+ 82. Kf4 Rf2+ 83. Ke4 h3 84. Qg3 Re2+ 85. Kd5 h2 86. Qh4+ Kg8 87. Kc4 Re4+ 88. Kd3 Nf5 89. Qd8+ Kh7 90. Qd7+ Re7 91. Qd5 Ng3 92. Kc4 Re4+ 93. Kc3 Bd4+ 94. Kc4 h1=Q 95. Qf7+ Bg7+ 96. Kb5 Re2 97. g5 Qa8 98. Qf6 Bxf6 99. gxf6 Qd5+ 100. Kb6 Rb2+ 101. Kc7 Rb7+ 102. Kc8 Qd7#) 78. Qf8+ {[%emt 0:00:49]} Bg7 {[%emt 0:00:09]} (78... Kh7 $142 79. Qd8 Bg1 80. Qc7+ Ng7 81. g4 Rxh2+ 82. Kg3 h4+ 83. Kf4 Rf2+ 84. Ke4 h3 85. Qg3 Re2+ 86. Kd5 h2 87. Qh4+ Kg8 88. Qd8+ Ne8 89. Qh4 Re7 {[%mdl 64] Promotion} 90. Qxe7 h1=Q+ 91. Kc4 Qc6+ 92. Kb3 Nf6 93. Qd8+ Kf7 94. Qd3 Nd5 95. Qf1+ Kg7 96. Qa1+ Kg8 97. Qa5 Bd4 98. Qd8+ Kf7 99. Qa5 Ne3 100. Qd2 Qc4+ 101. Ka3 Nc2+ 102. Qxc2 {[%mdl 64] Remove Defender} Qxc2 103. Kb4 Qc5+ 104. Ka4 Qc4+ 105. Ka5 Bc5 106. g5 Qb4+ 107. Ka6 Qb6#) 79. Qc8 {[%emt 0:00:56]} Rb2 {[%emt 0:00:21]} (79... Nd4 $142 80. Qc4 Nf3 81. Qxe2 Ng1+ 82. Kg2 Nxe2 83. Kf3 Nd4+ 84. Kf4 Bf6 85. h4 Nf5 86. Kf3 Be5 87. Ke4 Bxg3 88. Kd3 Bxh4 89. Ke2 Bg3 90. Kd3 h4 91. Ke4 h3 92. Kf3 Kg5 93. Ke4 h2 94. Kd5 h1=Q+ 95. Kc4 Qc6+ 96. Kb4 Ne3 97. Kb3 Bd6 98. Kb2 Qc2+ 99. Ka1 Be5#) 80. Qc1+ {[%emt 0:00:28]} Kh7 {[%emt 0:00:27]} 81. Qd1 {[%emt 0:00:33]} Ne3 {[%emt 0:00:27]} 82. Qd7 {[%emt 0:00:25]} Ng4 {[%emt 0:00:24]} 83. Kh4 {[%emt 0:00:05]} Kh6 {[%emt 0:00:18]} 0-1